fUSD/lending_fUSD_20250905
["ID","MTS","AMOUNT","RATE_DAILY","PERIOD"]
[383673074,1757080261524,-2000.0,0.0002587,2]
[383673075,1757080261537,-2000.0,0.0002587,2]
[383673076,1757080261547,-500.0,0.00025901,2]
[383673077,1757080261558,-865.0,0.00025902,2]
[383673078,1757080261568,-168.0,0.00025903,2]
[383673079,1757080261578,-467.4824348,0.00025909,2]
[383673080,1757080261588,-257.91778498,0.00025911,2]
[383673081,1757080261599,-168.0,0.00025915,7]
[383673082,1757080261610,-203.4664715,0.00025926,2]
[383673083,1757080261620,-400.0,0.00025926,2]
[383673084,1757080261631,-400.0,0.00025926,2]
[383673085,1757080261642,-488.52391363,0.00025926,2]
[383673086,1757080261653,-425.55,0.00025926,2]
[383673087,1757080261664,-2516.71,0.00025926,2]
[383673088,1757080261674,-400.0,0.00025926,2]
[383673089,1757080261685,-400.0,0.00025926,2]
[383673090,1757080261696,-400.0,0.00025926,2]
[383673091,1757080261707,-400.0,0.00025926,2]
[383673092,1757080261717,-400.0,0.00025926,2]
[383673093,1757080261727,-4574.52,0.00025926,2]
[383673094,1757080261738,-400.0,0.00025926,2]
[383673095,1757080261749,-528.19,0.00025926,2]
[383673096,1757080261759,-1398.32,0.00025926,2]
[383673097,1757080261770,-400.0,0.00025926,2]
[383673098,1757080261781,-850.97,0.00025926,2]
[383673099,1757080261791,-400.0,0.00025926,2]
[383673100,1757080261802,-400.0,0.00025926,2]
[383673101,1757080261814,-400.0,0.00025926,2]
[383673102,1757080261824,-400.0,0.00025926,2]
[383673103,1757080261834,-400.0,0.00025926,2]
[383673104,1757080261846,-400.0,0.00025926,2]
[383673105,1757080261857,-157.21794,0.00025926,2]
[383673106,1757080261867,-606.33,0.00025926,2]
[383673107,1757080261878,-400.0,0.00025926,2]
[383673108,1757080261887,-5479.16953803,0.00025929,4]
[383673109,1757080261898,-168.0,0.00025939,2]
[383673110,1757080261909,-400.0,0.00025982,2]
[383673111,1757080261920,-400.0,0.00025982,2]
[383673112,1757080261930,-400.0,0.00025982,2]
[383673113,1757080261940,-400.0,0.00025982,2]
[383673114,1757080261951,-484.6,0.00025983,2]
[383673115,1757080261961,-400.0,0.00025983,2]
[383673116,1757080261971,-400.0,0.00025983,2]
[383673117,1757080261981,-193.30198124,0.00025983,2]
[383673118,1757080261991,-400.0,0.00025983,2]
[383673119,1757080262001,-400.0,0.00025983,2]
[383673120,1757080262012,-400.0,0.00025983,2]
[383673121,1757080262022,-400.0,0.00025983,2]
[383673122,1757080262038,-400.0,0.00025983,2]
[383673123,1757080262049,-400.0,0.00025983,2]
[383673124,1757080262059,-548.1,0.00025983,2]
[383673125,1757080262070,-400.0,0.00025983,2]
[383673126,1757080262080,-864.95,0.00025983,2]
[383673127,1757080262090,-400.0,0.00025983,2]
[383673128,1757080262100,-400.0,0.00025983,2]
[383673129,1757080262111,-466.1267965,0.00025983,2]
[383673130,1757080262122,-400.0,0.00025983,2]
[383673131,1757080262132,-479.33879079,0.00025983,2]
[383673132,1757080262142,-400.0,0.00025983,2]
[383673133,1757080262153,-400.0,0.00025983,2]
[383673134,1757080262163,-486.65,0.00025983,2]
[383673135,1757080262174,-400.0,0.00025983,2]
[383673136,1757080262188,-400.0,0.00025983,2]
[383673137,1757080262200,-400.0,0.00025983,2]
[383673138,1757080262211,-400.0,0.00025983,2]
[383673139,1757080262221,-400.0,0.00025983,2]
[383673140,1757080262231,-188.2380506,0.00025983,2]
[383673141,1757080262241,-400.0,0.00025983,2]
[383673142,1757080262251,-416.42,0.00025983,2]
[383673143,1757080262262,-400.0,0.00025983,2]
[383673144,1757080262272,-400.0,0.00025983,2]
[383673145,1757080262288,-400.0,0.00025983,2]
[383673146,1757080262299,-541.89,0.00025983,2]
[383673147,1757080262310,-400.0,0.00025983,2]
[383673148,1757080262320,-400.0,0.00025983,2]
[383673149,1757080262331,-400.0,0.00025983,2]
[383673150,1757080262341,-400.0,0.00025983,2]
[383673151,1757080262351,-400.0,0.00025983,2]
[383673152,1757080262362,-400.0,0.00025983,2]
[383673153,1757080262373,-618.59,0.00025983,2]
[383673154,1757080262384,-397.69531173,0.00025983,2]
[383673155,1757080262394,-400.0,0.00025983,2]
[383673156,1757080262405,-400.0,0.00025983,2]
[383673157,1757080262417,-400.0,0.00025983,2]
[383673158,1757080262428,-435.11,0.00025983,2]
[383673159,1757080262610,-400.0,0.00025983,2]
[383673160,1757080262620,-409.66994809,0.00025983,2]
[383673161,1757080262630,-400.0,0.00025983,2]
[383673162,1757080262639,-400.0,0.00025983,2]
[383673163,1757080262649,-400.0,0.00025983,2]
[383673164,1757080262659,-279.59769438,0.00025983,2]
[383673165,1757080262669,-440.79705659,0.00025983,2]
[383673166,1757080262678,-400.0,0.00025983,2]
[383673167,1757080262689,-400.0,0.00025983,2]
[383673168,1757080262699,-400.0,0.00025983,2]
[383673169,1757080262708,-433.61167453,0.00025983,2]
[383673170,1757080262718,-414.0,0.00025993,2]
[383673171,1757080262727,-500.0,0.00025993,2]
[383673172,1757080262738,-500.0,0.00025999,2]
[383673173,1757080262748,-500.0,0.00025999,2]
[383673174,1757080262757,-500.0,0.00025999,2]
[383673175,1757080262767,-25309.76934397,0.00026,2]
[383673176,1757080262777,-800.0,0.00026,25]
[383673177,1757080262787,-39709.56,0.00026,7]
[383673178,1757080262797,-2909.62,0.00026,7]
[383673179,1757080262807,-4193.05,0.00026,7]
[383673180,1757080262816,-3416.09,0.00026,7]
[383673181,1757080262826,-12526.54,0.00026,7]
[383673182,1757080262836,-353.26,0.00026,7]
[383673183,1757080262846,-160.0,0.00026,3]
[383673184,1757080262855,-1625.0,0.00026,2]
[383673185,1757080262865,-353.45,0.00026,7]
[383673186,1757080262875,-1076.96,0.00026,2]
[383673187,1757080262885,-174.52,0.00026,7]
[383673188,1757080262895,-188.18,0.00026,7]
[383673189,1757080262905,-2300.0,0.00026008,2]
[383673190,1757080262915,-800.0,0.00026008,2]
[383673191,1757080262925,-503.46164994,0.00026025,2]
[383673192,1757080262936,-235.53272,0.00026025,2]
[383673193,1757080262945,-150.868106,0.00026025,2]
[383673194,1757080262960,-400.0,0.00026025,2]
[383673195,1757080262970,-459.99324295,0.00026025,2]
[383673196,1757080262980,-400.0,0.00026025,2]
[383673197,1757080262990,-400.0,0.00026025,2]
[383673198,1757080263000,-1177.68,0.00026025,2]
[383673199,1757080263009,-2245.68,0.00026025,2]
[383673200,1757080263019,-557.5,0.00026025,2]
[383673201,1757080263031,-400.0,0.00026025,2]
[383673202,1757080263041,-1291.11,0.00026025,2]
[383673203,1757080263051,-400.0,0.00026025,2]
[383673204,1757080263061,-400.0,0.00026025,2]
[383673205,1757080263071,-400.0,0.00026025,2]
[383673206,1757080263081,-400.0,0.00026025,2]
[383673207,1757080263091,-400.0,0.00026025,2]
[383673208,1757080263101,-400.0,0.00026025,2]
[383673209,1757080263110,-400.0,0.00026025,2]
[383673210,1757080263120,-400.0,0.00026025,2]
[383673211,1757080263129,-400.0,0.00026025,2]
[383673212,1757080263140,-400.0,0.00026025,2]
[383673213,1757080263150,-400.0,0.00026025,2]
[383673214,1757080263161,-400.0,0.00026025,2]
[383673215,1757080263172,-400.0,0.00026026,2]
[383673216,1757080263182,-400.0,0.00026026,2]
[383673217,1757080263194,-400.0,0.00026026,2]
[383673218,1757080263204,-400.0,0.00026026,2]
[383673219,1757080263215,-400.0,0.00026026,2]
[383673220,1757080263226,-373.04128306,0.00026026,2]
[383673221,1757080263235,-400.0,0.00026026,2]
[383673222,1757080263246,-400.0,0.00026026,2]
[383673223,1757080263255,-400.0,0.00026026,2]
[383673224,1757080263265,-400.0,0.00026026,2]
[383673225,1757080263275,-400.0,0.00026026,2]
[383673226,1757080263287,-249.85483748,0.00026026,2]
[383673227,1757080263297,-400.0,0.00026026,2]
[383673228,1757080263307,-400.0,0.00026026,2]
[383673229,1757080263317,-400.0,0.00026026,2]
[383673230,1757080263327,-400.0,0.00026026,2]
[383673231,1757080263337,-400.0,0.00026026,2]
[383673232,1757080263347,-400.0,0.00026026,2]
[383673233,1757080263357,-400.0,0.00026026,2]
[383673234,1757080263367,-400.0,0.00026026,2]
[383673235,1757080263377,-400.0,0.00026026,2]
[383673236,1757080263387,-400.0,0.00026026,2]
[383673237,1757080263397,-400.0,0.00026026,2]
[383673238,1757080263407,-537.68660249,0.00026026,2]
[383673239,1757080263417,-426.04007091,0.00026026,2]
[383673240,1757080263427,-400.0,0.00026026,2]
[383673241,1757080263437,-400.0,0.00026026,2]
[383673242,1757080263447,-400.0,0.00026026,2]
[383673243,1757080263456,-400.0,0.00026026,2]
[383673244,1757080263466,-400.0,0.00026026,2]
[383673245,1757080263475,-400.0,0.00026026,2]
[383673246,1757080263489,-400.0,0.00026026,2]
[383673247,1757080263499,-400.0,0.00026026,2]
[383673248,1757080263509,-400.0,0.00026026,2]
[383673249,1757080263519,-400.0,0.00026026,2]
[383673250,1757080263531,-400.0,0.00026026,2]
[383673251,1757080263542,-400.0,0.00026026,2]
[383673252,1757080263551,-400.0,0.00026026,2]
[383673253,1757080263561,-400.0,0.00026026,2]
[383673254,1757080263575,-400.0,0.00026026,2]
[383673255,1757080263585,-400.0,0.00026026,2]
[383673256,1757080263595,-400.0,0.00026026,2]
[383673257,1757080263606,-400.0,0.00026026,2]
[383673258,1757080263615,-400.0,0.00026026,2]
[383673259,1757080263625,-400.0,0.00026026,2]
[383673260,1757080263634,-400.7,0.00026026,2]
[383673261,1757080263644,-400.0,0.00026026,2]
[383673262,1757080263654,-400.0,0.00026026,2]
[383673263,1757080263664,-459.99,0.00026026,2]
[383673264,1757080263674,-419.40173949,0.00026026,2]
[383673265,1757080263685,-400.0,0.00026026,2]
[383673266,1757080263695,-400.0,0.00026026,2]
[383673267,1757080263705,-400.0,0.00026026,2]
[383673268,1757080263716,-400.0,0.00026026,2]
[383673269,1757080263726,-400.0,0.00026026,2]
[383673270,1757080263736,-400.0,0.00026026,2]
[383673271,1757080263746,-491.06,0.00026026,2]
[383673272,1757080263756,-400.0,0.00026026,2]
[383673273,1757080263766,-319.42551904,0.00026026,2]
[383673274,1757080263777,-400.0,0.00026026,2]
[383673275,1757080263789,-400.0,0.00026026,2]
[383673276,1757080263799,-400.0,0.00026026,2]
[383673277,1757080263809,-400.0,0.00026026,2]
[383673278,1757080263819,-400.0,0.00026026,2]
[383673279,1757080263830,-400.0,0.00026026,2]
[383673280,1757080263840,-400.0,0.00026026,2]
[383673281,1757080263850,-691.23,0.00026026,2]
[383673282,1757080263859,-1702.49,0.00026026,2]
[383673283,1757080263868,-400.0,0.00026026,2]
[383673284,1757080263879,-400.0,0.00026026,2]
[383673285,1757080263889,-400.0,0.00026026,2]
[383673286,1757080263898,-400.0,0.00026026,2]
[383673287,1757080263908,-1927.13,0.00026026,2]
[383673288,1757080263919,-400.0,0.00026026,2]
[383673289,1757080263929,-400.0,0.00026026,2]
[383673290,1757080263939,-400.0,0.00026026,2]
[383673291,1757080263948,-413.14,0.00026026,2]
[383673292,1757080263957,-400.0,0.00026026,2]
[383673293,1757080263967,-400.0,0.00026026,2]
[383673294,1757080263977,-400.0,0.00026026,2]
[383673295,1757080263987,-400.0,0.00026026,2]
[383673296,1757080263999,-400.0,0.00026026,2]
[383673297,1757080264009,-400.0,0.00026026,2]
[383673298,1757080264019,-400.0,0.00026026,2]
[383673299,1757080264031,-400.0,0.00026026,2]
[383673300,1757080264041,-835.85,0.00026026,2]
[383673301,1757080264052,-400.0,0.00026026,2]
[383673302,1757080264063,-400.0,0.00026026,2]
[383673303,1757080264072,-400.0,0.00026026,2]
[383673304,1757080264082,-400.0,0.00026026,2]
[383673305,1757080264092,-400.0,0.00026026,2]
[383673306,1757080264102,-400.0,0.00026026,2]
[383673307,1757080264111,-400.0,0.00026026,2]
[383673308,1757080264122,-400.0,0.00026026,2]
[383673309,1757080264131,-400.0,0.00026026,2]
[383673310,1757080264141,-400.0,0.00026026,2]
[383673311,1757080264151,-1036.34,0.00026026,2]
[383673312,1757080264161,-400.0,0.00026026,2]
[383673313,1757080264171,-410.68163786,0.00026026,2]
[383673314,1757080264182,-733.05,0.00026026,2]
[383673315,1757080264191,-400.0,0.00026026,2]
[383673316,1757080264202,-500.0,0.00026026,2]
[383673317,1757080264212,-1500.11,0.00026026,2]
[383673318,1757080264222,-400.0,0.00026026,2]
[383673319,1757080264232,-400.0,0.00026026,2]
[383673320,1757080264242,-956.58,0.00026026,2]
[383673321,1757080264251,-400.0,0.00026026,2]
[383673322,1757080264261,-400.0,0.00026026,2]
[383673323,1757080264270,-400.0,0.00026026,2]
[383673324,1757080264281,-400.0,0.00026026,2]
[383673325,1757080264291,-400.0,0.00026026,2]
[383673326,1757080264301,-400.0,0.00026026,2]
[383673327,1757080264311,-400.0,0.00026026,2]
[383673328,1757080264321,-400.0,0.00026026,2]
[383673329,1757080264331,-400.0,0.00026026,2]
[383673330,1757080264340,-400.0,0.00026026,2]
[383673331,1757080264350,-400.0,0.00026026,2]
[383673332,1757080264360,-400.0,0.00026026,2]
[383673333,1757080264369,-400.0,0.00026026,2]
[383673334,1757080264378,-400.0,0.00026026,2]
[383673335,1757080264388,-400.0,0.00026026,2]
[383673336,1757080264398,-400.0,0.00026026,2]
[383673337,1757080264408,-400.0,0.00026026,2]
[383673338,1757080264417,-400.0,0.00026026,2]
[383673339,1757080264426,-400.0,0.00026026,2]
[383673340,1757080264436,-463.62,0.00026026,2]
[383673341,1757080264445,-820.22,0.00026026,2]
[383673342,1757080264455,-400.0,0.00026026,2]
[383673343,1757080264464,-400.0,0.00026026,2]
[383673344,1757080264474,-400.0,0.00026026,2]
[383673345,1757080264486,-400.0,0.00026026,2]
[383673346,1757080264496,-1070.14,0.00026026,2]
[383673347,1757080264505,-407.15,0.00026026,2]
[383673348,1757080264515,-400.0,0.00026026,2]
[383673349,1757080264524,-1861.07,0.00026026,2]
[383673350,1757080264535,-400.0,0.00026026,2]
[383673351,1757080264545,-400.0,0.00026026,2]
[383673352,1757080264555,-400.0,0.00026026,2]
[383673353,1757080264565,-400.0,0.00026027,2]
[383673354,1757080264575,-400.0,0.00026027,2]
[383673355,1757080264584,-400.0,0.00026027,2]
[383673356,1757080264594,-400.0,0.00026027,2]
[383673357,1757080264604,-400.0,0.00026027,2]
[383673358,1757080264614,-184.67024243,0.00026027,2]
[383673359,1757080264624,-400.0,0.00026027,2]
[383673360,1757080264634,-400.0,0.00026027,2]
[383673361,1757080264643,-400.0,0.00026027,2]
[383673362,1757080264653,-400.0,0.00026027,2]
[383673363,1757080264663,-400.0,0.00026027,2]
[383673364,1757080264672,-518.59,0.00026027,2]
[383673365,1757080264682,-400.0,0.00026027,2]
[383673366,1757080264692,-400.0,0.00026027,2]
[383673367,1757080264701,-400.0,0.00026027,2]
[383673368,1757080264711,-400.0,0.00026027,2]
[383673369,1757080264721,-400.0,0.00026027,2]
[383673370,1757080264731,-400.0,0.00026027,2]
[383673371,1757080264741,-400.0,0.00026027,2]
[383673372,1757080264750,-400.0,0.00026027,2]
[383673373,1757080264760,-400.0,0.00026027,2]
[383673374,1757080264769,-400.0,0.00026027,2]
[383673375,1757080264778,-400.0,0.00026027,2]
[383673376,1757080264790,-400.0,0.00026027,2]
[383673377,1757080264799,-336.73,0.00026027,2]
[383673378,1757080264809,-400.0,0.00026027,2]
[383673379,1757080264819,-400.0,0.00026027,2]
[383673380,1757080264828,-400.0,0.00026027,2]
[383673381,1757080264838,-400.0,0.00026027,2]
[383673382,1757080264847,-400.0,0.00026027,2]
[383673383,1757080264857,-400.0,0.00026027,2]
[383673384,1757080264866,-400.0,0.00026027,2]
[383673385,1757080264875,-400.0,0.00026027,2]
[383673386,1757080264885,-400.0,0.00026027,2]
[383673387,1757080264895,-400.0,0.00026027,2]
[383673388,1757080264905,-400.0,0.00026027,2]
[383673389,1757080264914,-395.91536186,0.00026027,2]
[383673390,1757080264923,-455.55,0.00026027,2]
[383673391,1757080264933,-400.0,0.00026027,2]
[383673392,1757080264943,-213.32093007,0.00026027,2]
[383673393,1757080264953,-228.65,0.00026027,2]
[383673394,1757080264962,-778.08,0.00026027,2]
[383673395,1757080264972,-400.0,0.00026027,2]
[383673396,1757080264981,-400.0,0.00026027,2]
[383673397,1757080264992,-400.0,0.00026027,2]
[383673398,1757080265003,-400.0,0.00026027,2]
[383673399,1757080265013,-400.0,0.00026027,2]
[383673400,1757080265024,-400.0,0.00026027,2]
[383673401,1757080265036,-400.0,0.00026027,2]
[383673402,1757080265046,-381.72,0.00026027,2]
[383673403,1757080265056,-334.71181364,0.00026027,2]
[383673404,1757080265066,-180.03,0.00026027,2]
[383673405,1757080265076,-367.70916974,0.00026027,2]
[383673406,1757080265086,-400.0,0.00026027,2]
[383673407,1757080265096,-400.0,0.00026027,2]
[383673408,1757080265106,-360.9,0.00026027,2]
[383673409,1757080265115,-400.0,0.00026027,2]
[383673410,1757080265125,-481.02,0.00026027,2]
[383673411,1757080265135,-400.0,0.00026027,2]
[383673412,1757080265145,-400.0,0.00026027,2]
[383673413,1757080265155,-400.0,0.00026027,2]
[383673414,1757080265165,-400.0,0.00026027,2]
[383673415,1757080265174,-400.0,0.00026027,2]
[383673416,1757080265183,-400.0,0.00026027,2]
[383673417,1757080265193,-400.0,0.00026027,2]
[383673418,1757080265203,-400.0,0.00026027,2]
[383673419,1757080265212,-400.0,0.00026027,2]
[383673420,1757080265222,-400.0,0.00026027,2]
[383673421,1757080265232,-400.0,0.00026027,2]
[383673422,1757080265241,-400.0,0.00026027,2]
[383673423,1757080265251,-400.0,0.00026027,2]
[383673424,1757080265261,-400.0,0.00026027,2]
[383673425,1757080265271,-400.0,0.00026027,2]
[383673426,1757080265283,-405.18421571,0.00026027,2]
[383673427,1757080265292,-400.0,0.00026027,2]
[383673428,1757080265302,-400.0,0.00026027,2]
[383673429,1757080265312,-293.9,0.00026027,2]
[383673430,1757080265322,-533.63,0.00026027,2]
[383673431,1757080265331,-400.0,0.00026027,2]
[383673432,1757080265341,-400.0,0.00026027,2]
[383673433,1757080265350,-400.0,0.00026027,2]
[383673434,1757080265359,-400.0,0.00026027,2]
[383673435,1757080265369,-400.0,0.00026027,2]
[383673436,1757080265379,-400.0,0.00026027,2]
[383673437,1757080265389,-400.0,0.00026027,2]
[383673438,1757080265399,-300.0,0.00026027,2]
[383673439,1757080265409,-638.3,0.00026027,2]
[383673440,1757080265418,-494.53131674,0.00026027,2]
[383673441,1757080265428,-400.0,0.00026027,2]
[383673442,1757080265438,-403.18693405,0.00026027,2]
[383673443,1757080265448,-180.36620215,0.00026027,2]
[383673444,1757080265457,-1880.91,0.00026027,2]
[383673445,1757080265466,-400.0,0.00026027,2]
[383673446,1757080265478,-317.71203838,0.00026027,2]
[383673447,1757080265491,-400.0,0.00026027,2]
[383673448,1757080265499,-400.0,0.00026027,2]
[383673449,1757080265506,-234.13308572,0.00026027,2]
[383673450,1757080265513,-400.0,0.00026027,2]
[383673451,1757080265519,-400.0,0.00026027,2]
[383673452,1757080265527,-400.0,0.00026027,2]
[383673453,1757080265535,-400.0,0.00026027,2]
[383673454,1757080265544,-400.0,0.00026027,2]
[383673455,1757080265555,-400.0,0.00026027,2]
[383673456,1757080265565,-400.0,0.00026027,2]
[383673457,1757080265574,-400.0,0.00026027,2]
[383673458,1757080265584,-400.0,0.00026027,2]
[383673459,1757080265594,-256.1,0.00026027,2]
[383673460,1757080265604,-400.0,0.00026027,2]
[383673461,1757080265613,-470.55877765,0.00026027,2]
[383673462,1757080265623,-400.0,0.00026027,2]
[383673463,1757080265632,-400.0,0.00026027,2]
[383673464,1757080265642,-266.19,0.00026027,2]
[383673465,1757080265652,-400.0,0.00026027,2]
[383673466,1757080265661,-400.0,0.00026027,2]
[383673467,1757080265671,-510.36,0.00026027,2]
[383673468,1757080265681,-400.0,0.00026027,2]
[383673469,1757080265690,-400.0,0.00026027,2]
[383673470,1757080265700,-400.0,0.00026027,2]
[383673471,1757080265709,-415.61,0.00026027,2]
[383673472,1757080265865,-400.0,0.00026027,2]
[383673473,1757080265876,-400.0,0.00026027,2]
[383673474,1757080265887,-305.93,0.00026027,2]
[383673475,1757080265897,-400.0,0.00026027,2]
[383673476,1757080265907,-404.52,0.00026027,2]
[383673477,1757080265917,-400.0,0.00026027,2]
[383673478,1757080265927,-400.0,0.00026027,2]
[383673479,1757080265938,-400.0,0.00026027,2]
[383673480,1757080265948,-400.0,0.00026027,2]
[383673481,1757080265957,-400.0,0.00026027,2]
[383673482,1757080265967,-400.0,0.00026027,2]
[383673483,1757080265977,-400.0,0.00026027,2]
[383673484,1757080265986,-400.0,0.00026027,2]
[383673485,1757080265995,-1096.06,0.00026027,2]
[383673486,1757080266005,-233.97,0.00026027,2]
[383673487,1757080266015,-400.0,0.00026027,2]
[383673488,1757080266024,-400.0,0.00026027,2]
[383673489,1757080266034,-400.0,0.00026027,2]
[383673490,1757080266044,-400.0,0.00026027,2]
[383673491,1757080266054,-400.0,0.00026027,2]
[383673492,1757080266064,-180.3,0.00026027,2]
[383673493,1757080266073,-161.88278127,0.00026027,2]
[383673494,1757080266083,-816.55,0.00026027,2]
[383673495,1757080266093,-1500.0,0.00026068,2]
[383673496,1757080266102,-1500.0,0.00026068,2]
[383673497,1757080266112,-168.0,0.00026077,2]
[383673498,1757080266122,-500.0,0.00026094,2]
[383673499,1757080266131,-500.0,0.00026094,2]
[383673500,1757080266141,-1332.69,0.00026095,2]
[383673501,1757080266151,-400.0,0.00026095,2]
[383673502,1757080266162,-400.0,0.00026095,2]
[383673503,1757080266171,-716.83,0.00026095,2]
[383673504,1757080266182,-400.0,0.00026095,2]
[383673505,1757080266192,-400.0,0.00026095,2]
[383673506,1757080266203,-3437.21,0.00026095,2]
[383673507,1757080266212,-400.0,0.00026095,2]
[383673508,1757080266224,-400.0,0.00026095,2]
[383673509,1757080266233,-400.0,0.00026095,2]
[383673510,1757080266242,-400.0,0.00026095,2]
[383673511,1757080266252,-400.0,0.00026095,2]
[383673512,1757080266261,-13543.64390397,0.00026102,2]
[383673513,1757080266271,-168.0,0.00026118,2]
[383673514,1757080266281,-168.0,0.0002612,2]
[383673515,1757080266292,-904.0,0.00026145,2]
[383673516,1757080266302,-394.8,0.000262,2]
[383673517,1757080266312,-321.01,0.000262,2]
[383673518,1757080266321,-425.55,0.000262,2]
[383673519,1757080266331,-2516.71,0.000262,2]
[383673520,1757080266343,-400.0,0.000262,2]
[383673521,1757080266353,-400.0,0.000262,2]
[383673522,1757080266363,-400.0,0.000262,2]
[383673523,1757080266374,-400.0,0.000262,2]
[383673524,1757080266383,-400.0,0.000262,2]
[383673525,1757080266394,-4574.52,0.000262,2]
[383673526,1757080266404,-400.0,0.000262,2]
[383673527,1757080266414,-528.19,0.000262,2]
[383673528,1757080266423,-1398.32,0.000262,2]
[383673529,1757080266433,-850.97,0.000262,2]
[383673530,1757080266443,-400.0,0.000262,2]
[383673531,1757080266453,-400.0,0.000262,2]
[383673532,1757080266462,-400.0,0.000262,2]
[383673533,1757080266472,-400.0,0.000262,2]
[383673534,1757080266485,-400.0,0.000262,2]
[383673535,1757080266495,-400.0,0.000262,2]
[383673536,1757080266505,-157.21794,0.000262,2]
[383673537,1757080266514,-606.33,0.000262,2]
[383673538,1757080266525,-400.0,0.000262,2]
[383673539,1757080266534,-400.0,0.00026256,2]
[383673540,1757080266545,-400.0,0.00026256,2]
[383673541,1757080266554,-224.80170197,0.00026256,2]
[383673542,1757080266565,-400.0,0.00026257,2]
[383673543,1757080266575,-400.0,0.00026257,2]
[383673544,1757080266585,-400.0,0.00026257,2]
[383673545,1757080266594,-400.0,0.00026257,2]
[383673546,1757080266604,-400.0,0.00026257,2]
[383673547,1757080266613,-400.0,0.00026257,2]
[383673548,1757080266623,-548.1,0.00026257,2]
[383673549,1757080266632,-466.59,0.00026257,2]
[383673550,1757080266641,-864.95,0.00026257,2]
[383673551,1757080266650,-356.03,0.00026257,2]
[383673552,1757080266660,-400.0,0.00026257,2]
[383673553,1757080266669,-484.16,0.00026257,2]
[383673554,1757080266679,-400.0,0.00026257,2]
[383673555,1757080266688,-400.0,0.00026257,2]
[383673556,1757080266698,-297.94126309,0.00026257,2]
[383673557,1757080266707,-400.0,0.00026257,2]
[383673558,1757080266717,-400.0,0.00026257,2]
[383673559,1757080266727,-408.79,0.00026257,2]
[383673560,1757080266736,-400.0,0.00026257,2]
[383673561,1757080266747,-511.17,0.00026257,2]
[383673562,1757080266757,-400.0,0.00026257,2]
[383673563,1757080266767,-216.83389397,0.00026257,2]
[383673564,1757080266777,-400.0,0.00026257,2]
[383673565,1757080266789,-400.0,0.00026257,2]
[383673566,1757080266798,-400.0,0.00026257,2]
[383673567,1757080266808,-400.0,0.00026257,2]
[383673568,1757080266818,-534.18,0.00026257,2]
[383673569,1757080266828,-618.59,0.00026257,2]
[383673570,1757080266838,-400.0,0.00026257,2]
[383673571,1757080266849,-400.0,0.00026257,2]
[383673572,1757080266859,-400.0,0.00026257,2]
[383673573,1757080266869,-435.11,0.00026257,2]